[Event "BL 2024-25"]
[Site "Austria"]
[Date "2024.10.12"]
[Round "4.18"]
[White "Bacrot, Etienne"]
[Black "Hartl, Daniel"]
[Result "1-0"]
[Annotator "TA"]
[ECO "C78"]
[WhiteElo "2658"]
[BlackElo "2248"]
[PlyCount "57"]
[EventDate "2024.08.28"]
[EventType "team-tourn"]
[EventCountry "AUT"]
[SourceTitle "playchess.com"]
[Source "ChessBase"]
[SourceQuality "1"]
[WhiteTeam "Linz"]
[BlackTeam "Maria Saal"]
[TimeControl "40/5400+30:1800+30"]

{[%evp 16,57,33,12,11,11,36,18,88,78,70,72,75,47,107,134,252,243,270,276,296,293,257,243,259,222,238,256,253,249,234,245,532,251,230,255,435,355,579,552,29993,29994,29996,29997]} 1. e4 {[%emt 0:00:02]} e5 {[%emt 0:00:06]} 2. Nf3 {[%emt 0:00:03]} Nc6 {[%emt 0:00:04]} 3. Bb5 {[%emt 0:00:04]} a6 {[%emt 0:00:04]} 4. Ba4 {[%emt 0:00:04]} Nf6 {[%emt 0:00:06]} 5. O-O {[%emt 0:00:04]} b5 {[%emt 0:00:05]} 6. Bb3 {[%emt 0:00:04]} Bc5 {[%emt 0:00:05][%cal Bf8c5,Bc5b6,Bb6d4][%mdl 32]} 7. c3 {[%emt 0:00:05]} d6 {[%emt 0:00:05]} 8. d4 {[%emt 0:00:16]} Bb6 {[%emt 0:00:07]} 9. Be3 {[%emt 0:00:05]} Bg4 {[%emt 0:06:01]} 10. Nbd2 {[%emt 0:16:08]} exd4 {[%emt 0:13:40]} 11. cxd4 {[%emt 0:00:19]} Nxd4 {[%emt 0:08:23]} 12. Bxd4 {[%emt 0:01:15]} Bxd4 {[%emt 0:00:05] [#]} 13. Bxf7+ {[%emt 0:00:35]} Kxf7 {[%emt 0:04:13]} 14. Qb3+ {[%emt 0:00:29]} Kf8 {[%emt 0:00:18]} ({Black should try} 14... d5 $1 $14) 15. Nxd4 $16 {[%emt 0:00:22]} Qe8 {[%emt 0:01:08]} (15... c5 $16) 16. h3 $18 {[%emt 0:04:50]} Bd7 {[%emt 0:00:26]} 17. Rfe1 {[%emt 0:00:57]} Qf7 {[%emt 0:02:55]} 18. Qa3 {[%emt 0:03:02]} Kg8 {[%emt 0:06:14]} 19. e5 {[%emt 0:01:40]} dxe5 {[%emt 0:00:28]} 20. Rxe5 {[%emt 0:00:05]} Re8 {[%emt 0:00:28]} 21. Rae1 {[%emt 0:00:54][%cal Ba1e1,Be1e5,Be5e7,Be7c7][%mdl 32] [#] aiming for Rxe8+.} Rxe5 {[%emt 0:01:35]} 22. Rxe5 {[%emt 0:00:02][%cal Oe5e7] Threatens to win with Re7!} h6 {[%emt 0:00:18]} 23. Re7 {[%emt 0:05:58]} (23. Qxa6 $6 Kh7) 23... Qg6 {[%emt 0:03:54]} (23... b4 24. Qxb4 (24. Qxa6 $2 Qxe7 25. Qd3 c5 $19) 24... Qg6 25. Qc4+ Kh7) 24. N4f3 {[%emt 0:07:18]} (24. Qxa6 Bxh3 25. g3 (25. Nxb5 $2 Qxg2#) 25... Kh7 $16) (24. N2f3 $142 {Black must now prevent Ne5.} Qb1+ 25. Kh2 (25. Re1 Qg6 $18)) 24... Bc6 {[%emt 0:01:45]} 25. Qxa6 {[%emt 0:02:08]} Nh5 $2 {[%emt 0:06:05]} (25... Nd5 26. Re4 (26. Ne5 Qf6 $14) 26... Qf6) 26. Nh4 {[%emt 0:15:34]} ({Weaker is} 26. Rxc7 Nf4 27. g3 (27. Qxc6 $2 Qxg2#) (27. Qc8+ Kh7 $18) 27... Bd5 28. Rc8+ (28. Qxb5 Kh7 $18) 28... Kh7 29. Qxg6+ (29. Qxb5 $2 {loses.} Rxc8 30. Kh2 Rc2 $19) 29... Nxg6 30. Rxh8+ Kxh8 $18) 26... Qg5 {[%emt 0:12:10]} (26... Qf6 {was worth a try.}) 27. Rxc7 {[%emt 0:04:41]} Qxd2 {[%emt 0:04:45]} 28. Qc8+ {[%emt 0:00:25]} Kh7 {[%emt 0:00:36]} 29. Qf5+ {[%emt 0:00:06] Black did not feel at home in the position after the opening.   Weighted Error Value: White=0.29 (precise) /Black=0.85.  Mistake:       	White=1     	Black=6      Inaccurate:     	---       	Black=1      OK:         	White=6     	Black=4      Best:        	White=4     	Black=1      Brilliant:      	White=1     	---} 1-0

[Event "BL 2024-25"]
[Site "Austria"]
[Date "2024.10.12"]
[Round "4.19"]
[White "Kozak, Adam"]
[Black "Vitouch, Anatol"]
[Result "1-0"]
[Annotator "TA"]
[ECO "A19"]
[WhiteElo "2600"]
[BlackElo "2287"]
[PlyCount "111"]
[EventDate "2024.08.28"]
[EventType "team-tourn"]
[EventCountry "AUT"]
[SourceTitle "playchess.com"]
[Source "ChessBase"]
[SourceQuality "1"]
[WhiteTeam "Fuerstenfeld-Hartberg"]
[BlackTeam "Pamhagen"]
[TimeControl "40/5400+30:1800+30"]

{[%evp 9,111,-29,-33,-12,0,-16,0,0,9,0,11,-7,120,124,125,127,139,142,128,101,116,74,126,127,130,119,150,152,139,107,121,123,198,166,169,166,161,169,158,153,175,168,185,163,146,114,99,91,108,116,102,83,83,69,135,62,45,40,155,154,154,154,159,160,170,173,162,175,171,91,102,85,91,80,86,97,90,90,95,95,104,96,100,96,96,97,112,126,433,478,497,498,495,486,433,433,662,0,300,0,648,648,29978,29979]} 1. c4 {[%emt 0:00:12]} c5 {[%emt 0:00:04]} 2. Nc3 {[%emt 0:00:43]} Nf6 {[%emt 0:00:06]} 3. e4 {[%emt 0:01:06]} Nc6 {[%emt 0:00:14]} 4. g3 {[%emt 0:00:12]} e6 {[%emt 0:01:43]} 5. f4 {[%emt 0:09:21]} d5 {[%emt 0:01:44]} 6. e5 {[%emt 0:04:52]} d4 {[%emt 0:04:39]} 7. exf6 {[%emt 0:02:54]} dxc3 {[%emt 0:00:07]} 8. bxc3 {[%emt 0:04:15] The position is equal.} Qxf6 {[%emt 0:03:08]} 9. Bg2 {[%emt 0:00:33]} e5 {[%emt 0:19:52]} 10. Ne2 {[%emt 0:00:30]} Bf5 {[%emt 0:08:07]} (10... Bd6 $11 {remains equal.}) 11. fxe5 $1 $16 {[%emt 0:04:09]} Qxe5 {[%emt 0:03:55]} (11... Nxe5 $2 12. O-O $18) 12. O-O {[%emt 0:01:20]} (12. Bxc6+ bxc6 13. O-O Be7 $11 (13... Bd3 14. Re1 $15)) 12... Bg4 {[%emt 0:10:44] [#]} 13. Qa4 $1 {[%emt 0:12:44]} Bd7 {[%emt 0:06:56]} (13... Bxe2 $2 14. Bxc6+ Kd8 15. Rxf7 $18 (15. Bxb7 Bxf1 16. Bxa8 Bd3 $16)) 14. Nf4 {[%emt 0:00:38]} Bd6 {[%emt 0:03:43]} 15. Rb1 {[%emt 0:06:59]} Nd8 {[%emt 0:10:39]} (15... Rb8 $142) 16. Qd1 {[%emt 0:02:09] White is more active.} O-O {[%emt 0:00:12]} 17. d4 $1 {[%emt 0:02:04]} (17. Bxb7 $2 Nxb7 18. Rxb7 Bc6 $19) 17... cxd4 {[%emt 0:01:40]} 18. cxd4 {[%emt 0:00:09]} Qa5 {[%emt 0:00:10]} 19. c5 {[%emt 0:09:03]} (19. Bxb7 Nxb7 20. Rxb7 Bc8 $11) 19... Bxf4 {[%emt 0:01:49]} 20. Bxf4 {[%emt 0:00:09][%cal Bc1f4,Bf4d2,Bd2b4][%mdl 32]} (20. gxf4 Re8 $14) 20... Rc8 {[%emt 0:11:48]} (20... Bc6 $16 {might work better.}) 21. Qd2 {[%emt 0:15:49]} (21. Bxb7 Nxb7 22. Rxb7 Bc6 $11) 21... Qxd2 {[%emt 0:01:39]} 22. Bxd2 {[%emt 0:00:00]} b6 {[%emt 0:03:29] Black is weak on the dark squares} 23. cxb6 {[%emt 0:04:20]} axb6 {[%emt 0:00:04]} 24. Rxb6 {[%emt 0:01:23]} Rc2 {[%emt 0:00:06]} 25. Bb4 {[%emt 0:00:04]} Re8 {[%emt 0:00:26]} 26. a3 {[%emt 0:00:33]} Ne6 {[%emt 0:01:59]} 27. Rd6 {[%emt 0:02:18]} Bb5 {[%emt 0:01:29]} 28. Re1 {[%emt 0:00:12] And now d5 would win.} Rec8 {[%emt 0:01:58]} 29. h4 {[%emt 0:02:16]} Rb2 {[%emt 0:01:16]} 30. Bb7 {[%emt 0:07:13]} Rb8 {[%emt 0:01:04]} 31. Be4 {[%emt 0:01:52]} g5 {[%emt 0:00:13]} (31... Rb3 $14) 32. hxg5 {[%emt 0:02:27]} (32. Rb1 $16 Rxb1+ 33. Bxb1) 32... Nxg5 $14 {[%emt 0:00:13]} 33. Bg2 {[%emt 0:00:09] Dodges Nh3+. This pair of bishops is nice.} Be2 {[%emt 0:00:36]} (33... Kg7 $14) 34. Rf6 $16 {[%emt 0:02:14]} Bg4 {[%emt 0:00:36]} 35. Re5 {[%emt 0:01:58]} Nh3+ {[%emt 0:00:58] [#]} 36. Bxh3 $1 {[%emt 0:00:55]} Bxh3 {[%emt 0:00:04]} 37. Rg5+ {[%emt 0:00:17]} Kh8 {[%emt 0:00:04]} 38. Rxf7 {[%emt 0:00:56]} Rg8 {[%emt 0:01:11]} 39. Rxg8+ {[%emt 0:00:30]} (39. Rf8 $18 Rxf8 40. Bxf8 Rg2+ 41. Kh1) 39... Kxg8 $18 {[%emt 0:00:06][%mdl 4096] Endgame. KRB-KRB} 40. Rf8+ {[%emt 0:00:30]} Kg7 {[%emt 0:00:06][%cal Ob2b4]} 41. Rf3 {[%emt 0:04:26]} Rg2+ {[%emt 0:03:35]} 42. Kh1 {[%emt 0:00:17][%cal Og3g4] Black must now prevent g4!} Ra2 {[%emt 0:00:47] Threatens to win with ...Bg2+.} 43. Rd3 {[%emt 0:02:14]} Bg2+ {[%emt 0:01:06]} 44. Kg1 {[%emt 0:00:03] Hoping for d5.} Bd5 {[%emt 0:00:13]} 45. Re3 {[%emt 0:00:15]} Kf6 {[%emt 0:06:07]} 46. Kf1 {[%emt 0:00:26]} Bc4+ {[%emt 0:02:29] [#]} 47. Ke1 $1 {[%emt 0:00:07]} Kf5 {[%emt 0:00:19]} 48. Re5+ {[%emt 0:01:55]} Kg4 $2 {[%emt 0:00:15][%mdl 8192]} (48... Kf6 $16 {is more resistant.} 49. Rc5 Bd3 50. Rc6+ Kf5) 49. d5 {[%emt 0:02:28][%cal Bd4d5,Bd5d6][%mdl 32] Strongly threatening Re4+.} Bb3 {[%emt 0:03:47]} 50. d6 {[%emt 0:02:44]} Ba4 {[%emt 0:00:44] Inhibits d7.} 51. Re7 {[%emt 0:11:32]} Kf3 {[%emt 0:00:53]} 52. Rf7+ {[%emt 0:01:25]} ({Not} 52. Rxh7 Re2+ 53. Kf1 Re5 $16) 52... Ke3 {[%emt 0:00:29]} (52... Kxg3 $142 53. d7 (53. Rxh7 Kf3 $18) 53... Bxd7 54. Rxd7 h5) 53. Re7+ {[%emt 0:00:14]} (53. Rxh7 $2 Ra1#) (53. Bc5+ $142 Kd3 54. d7 (54. Rxh7 Re2+ 55. Kf1 Re5 $18) 54... Bxd7 55. Rxd7+ Kc4 56. Bd6) 53... Kf3 {[%emt 0:00:12]} 54. Rf7+ $2 {[%emt 0:00:31]} ({Resist} 54. Rxh7 $6 Re2+ 55. Kf1 Re5 $16) (54. g4) 54... Ke3 $1 {[%emt 0:00:13][%cal Ra2a1]} 55. Bc5+ {[%emt 0:00:04]} (55. Rxh7 $2 Ra1#) 55... Ke4 {[%emt 0:00:34]} 56. Rf4+ {[%emt 0:00:12] Weighted Error Value: White=0.27 (precise) /Black=0.46.  Loses game:     	---       	Black=1      Mistake:       	White=3     	Black=6      Inaccurate:     	White=1     	Black=1      OK:         	White=16    	Black=13     Best:        	White=6     	Black=4      Strong:       	White=4     	Black=1} 1-0

[Event "BL 2024-25"]
[Site "Austria"]
[Date "2024.10.12"]
[Round "4.20"]
[White "Gschiel, Alexander"]
[Black "Berkes, Ferenc"]
[Result "0-1"]
[Annotator "TA"]
[ECO "A40"]
[WhiteElo "2326"]
[BlackElo "2604"]
[PlyCount "52"]
[EventDate "2024.08.28"]
[EventType "team-tourn"]
[EventCountry "AUT"]
[SourceTitle "playchess.com"]
[Source "ChessBase"]
[SourceQuality "1"]
[WhiteTeam "Pamhagen"]
[BlackTeam "Fuerstenfeld-Hartberg"]
[TimeControl "40/5400+30:1800+30"]

{[%evp 9,52,19,21,18,42,35,52,7,48,37,45,37,41,21,37,33,36,40,33,38,67,-8,-6,-10,-12,-5,-4,-4,-8,-74,-64,-118,-88,-147,-130,-130,-131,-187,-182,-235,-277,-292,-270,-543,-535]} 1. d4 {[%emt 0:00:04]} e6 {[%emt 0:00:14]} 2. c4 {[%emt 0:00:20]} Bb4+ {[%emt 0:00:09]} 3. Nd2 {[%emt 0:00:35]} c5 {[%emt 0:00:56]} 4. a3 {[%emt 0:01:12]} Bxd2+ {[%emt 0:00:10]} 5. Qxd2 {[%emt 0:00:12]} cxd4 {[%emt 0:00:14]} 6. Nf3 {[%emt 0:00:39]} Nc6 {[%emt 0:00:11]} 7. Nxd4 {[%emt 0:00:13]} Nf6 {[%emt 0:00:17]} 8. g3 {[%emt 0:04:32] White is slightly better.} O-O {[%emt 0:04:31]} 9. Bg2 {[%emt 0:01:13]} d5 {[%emt 0:00:18]} 10. O-O {[%emt 0:05:02]} Re8 {[%emt 0:05:05]} 11. Rd1 {[%emt 0:08:04]} Qe7 {[%emt 0:11:57]} 12. Qc3 {[%emt 0:10:22]} Nxd4 {[%emt 0:04:12]} 13. Qxd4 {[%emt 0:02:19][%cal Rc4d5]} e5 {[%emt 0:00:31]} 14. Qh4 {[%emt 0:03:25]} d4 {[%emt 0:00:15]} 15. e3 {[%emt 0:02:36]} ({White should try} 15. Bg5 $14) 15... Bg4 $36 {[%emt 0:06:56][%mdl 2048] Black is more active.} 16. f3 {[%emt 0:08:16]} Bf5 {[%emt 0:00:09]} 17. exd4 {[%emt 0:02:02]} exd4 {[%emt 0:00:09] [#] And now ...Bc2 would win.} 18. Bg5 {[%emt 0:00:07]} (18. Rxd4 $2 {too greedy.} Qe1+ 19. Bf1 Re2 $19) (18. Qxd4 $2 {loses.} Rad8 $19) 18... d3 {[%emt 0:01:40]} 19. g4 {[%emt 0:03:41]} (19. Qd4 $11 {remains equal.}) 19... Bg6 $17 {[%emt 0:00:23]} 20. Bxf6 {[%emt 0:11:33]} (20. b4 $15) 20... gxf6 {[%emt 0:00:08]} 21. Qf2 {[%emt 0:01:09] Dodges Qc5} ({Better is} 21. f4 Be4 22. Re1 Qc5+ 23. Qf2) 21... Rad8 {[%emt 0:00:35]} 22. Rd2 {[%emt 0:03:13][%cal Of3f4]} Qc7 {[%emt 0:05:48] Black is more active.} 23. h4 {[%emt 0:13:42]} (23. Rad1 $17) 23... h6 {[%emt 0:01:47]} 24. b3 {[%emt 0:01:02]} (24. f4 {was necessary.} Be4 (24... Qxc4 $2 25. f5 $19) 25. Re1 Qxc4 26. Bf1) 24... Qf4 $19 {[%emt 0:00:12]} 25. Re1 {[%emt 0:00:30]} Kg7 {[%emt 0:01:32][%cal Of4d2]} 26. Bh1 $2 {[%emt 0:04:53] [#]} (26. Red1) 26... Qxd2 $3 {[%emt 0:04:23][%mdl 512] Weighted Error Value: White=0.44/Black=0.07 (flawless) .  Mistake:       	White=7     	---        Inaccurate:     	White=1     	Black=2      OK:         	White=6     	Black=9      Best:        	White=3     	Black=2      Brilliant:      	---       	Black=1} 0-1

[Event "BL 2024-25"]
[Site "Austria"]
[Date "2024.10.12"]
[Round "4.21"]
[White "Samunenkov, Ihor"]
[Black "Lovrinovic, Christian"]
[Result "1-0"]
[Annotator "TA"]
[ECO "B22"]
[WhiteElo "2533"]
[BlackElo "2053"]
[PlyCount "33"]
[EventDate "2024.08.28"]
[EventType "team-tourn"]
[EventCountry "AUT"]
[SourceTitle "playchess.com"]
[Source "ChessBase"]
[SourceQuality "1"]
[WhiteTeam "Fuerstenfeld-Hartberg"]
[BlackTeam "Pamhagen"]
[TimeControl "40/5400+30:1800+30"]

{[%evp 14,33,45,43,57,47,48,41,42,30,81,86,73,63,514,501,930,913,29976,640,29977,29978]} 1. e4 c5 2. c3 b6 3. d4 Bb7 4. Bd3 Nf6 5. Nd2 cxd4 6. cxd4 Nc6 {[%cal Bb8c6,Bc6b4,Bb4d3][%mdl 32]} 7. Ngf3 Nb4 8. Bb1 Ba6 9. a3 Nd3+ 10. Bxd3 Bxd3 {White is slightly better.} 11. e5 Ne4 (11... Ng8 $1 $11) 12. Qb3 $16 Nxd2 13. Bxd2 $40 {[%mdl 128] Black needs to defend precisely.} Ba6 {[%mdl 8192] [#]} (13... Be4 $1 $14) 14. Ng5 $1 $18 {[%csl Gg5][%cal Rb3f7]} e6 {[#]} (14... Qc7 $142 15. Qxf7+ (15. Nxf7 Rg8 $18) 15... Kd8) 15. Qf3 $1 {[%csl Gg5][%cal Rf3f7]} Qb8 16. Qxf7+ {Black is weak on the dark squares} Kd8 {[#]} 17. Nxe6+ $1 {[%mdl 512] White took control after the opening.   Weighted Error Value: White=0.02 (flawless) /Black=2.37.  Loses game:     	---       	Black=1      Mistake:       	---       	Black=2      Inaccurate:     	---       	Black=1      OK:         	---       	Black=1      Best:        	White=3     	Black=1      Strong:       	White=2     	---} 1-0

[Event "BL 2024-25"]
[Site "Austria"]
[Date "2024.10.12"]
[Round "4.22"]
[White "Horvath, Maria"]
[Black "Korpa, Bence"]
[Result "0-1"]
[Annotator "TA"]
[ECO "A41"]
[WhiteElo "1893"]
[BlackElo "2550"]
[PlyCount "40"]
[EventDate "2024.08.28"]
[EventType "team-tourn"]
[EventCountry "AUT"]
[SourceTitle "playchess.com"]
[Source "ChessBase"]
[SourceQuality "1"]
[WhiteTeam "Pamhagen"]
[BlackTeam "Fuerstenfeld-Hartberg"]
[TimeControl "40/5400+30:1800+30"]

{[%evp 9,40,21,31,25,29,28,27,33,41,20,21,-24,-9,-8,-4,-64,-15,-69,-44,-26,-39,-33,-26,-15,-15,-12,-10,-48,-56,-129,-127,-612,-620]} 1. d4 {[%emt 0:00:03][%cal Bd2d4,Bd4d5][%mdl 32]} Nc6 {[%emt 0:00:14]} 2. Nf3 {[%emt 0:00:28]} d6 {[%emt 0:00:17]} 3. Bf4 {[%emt 0:01:26]} g6 {[%emt 0:01:25]} 4. d5 {[%emt 0:05:22]} Nb8 {[%emt 0:00:08]} 5. c4 {[%emt 0:00:35]} Bg7 {[%emt 0:01:08]} 6. Nc3 {[%emt 0:00:54]} e5 {[%emt 0:02:51]} 7. Bg5 {[%emt 0:02:08]} f6 {[%emt 0:00:39][%cal Bf7f6,Bf6f5][%mdl 32]} 8. Bd2 {[%emt 0:00:58] White has an edge.} f5 {[%emt 0:01:46]} 9. e4 {[%emt 0:00:59]} Nf6 {[%emt 0:00:56]} 10. b4 {[%emt 0:07:08]} fxe4 {[%emt 0:04:40]} 11. Ng5 {[%emt 0:00:43][%cal Of1e2]} Bf5 {[%emt 0:04:57]} 12. Qe2 {[%emt 0:08:35]} (12. g3 $11) 12... O-O {[%emt 0:14:31]} (12... a5 $15 13. b5 Nbd7) 13. Ngxe4 {[%emt 0:10:35]} (13. h3 $1 $11) 13... Nxe4 {[%emt 0:01:22]} 14. Nxe4 {[%emt 0:00:07]} Qh4 {[%emt 0:00:10]} 15. Ng3 {[%emt 0:01:41]} Nd7 {[%emt 0:05:06] [#] ...e4 is the strong threat.} 16. Nxf5 {[%emt 0:07:21]} gxf5 {[%emt 0:00:12]} 17. g3 {[%emt 0:00:04]} Qf6 {[%emt 0:06:26]} 18. Rc1 {[%emt 0:04:00]} a5 {[%emt 0:03:13]} 19. Bh3 {[%emt 0:05:02]} (19. bxa5 $15 Nc5 20. Bh3) 19... axb4 $17 {[%emt 0:00:34]} 20. Bxb4 $2 {[%emt 0:00:00][%mdl 8192] [#]} (20. Rc2 $17) 20... Qh6 $1 {[%emt 0:49:55][%csl LRc1,LRh3] Weighted Error Value: White=0.55/Black=0.07 (flawless) .  Loses game:     	White=1     	---        Mistake:       	White=3     	Black=1      Inaccurate:     	White=2     	---        OK:         	White=4     	Black=7      Best:        	---       	Black=1} 0-1

[Event "BL 2024-25"]
[Site "Austria"]
[Date "2024.10.12"]
[Round "4.24"]
[White "Rusek, Walter"]
[Black "Schernthaner, David"]
[Result "0-1"]
[Annotator "TA"]
[ECO "E35"]
[WhiteElo "1838"]
[BlackElo "2389"]
[PlyCount "46"]
[EventDate "2024.08.28"]
[EventType "team-tourn"]
[EventCountry "AUT"]
[SourceTitle "playchess.com"]
[Source "ChessBase"]
[SourceQuality "1"]
[WhiteTeam "Pamhagen"]
[BlackTeam "Fuerstenfeld-Hartberg"]
[TimeControl "40/5400+30:1800+30"]

{[%evp 16,46,6,0,0,0,4,-31,-4,-30,0,-9,-9,-23,-29,-37,-16,-65,-12,-134,-162,-141,-136,-315,-307,-569,-564,-509,-568,-562,-552,-547,-555]} 1. d4 {[%emt 0:00:02]} Nf6 {[%emt 0:00:06]} 2. c4 {[%emt 0:00:02]} e6 {[%emt 0:00:05]} 3. Nc3 {[%emt 0:00:04]} Bb4 {[%emt 0:00:06]} 4. Qc2 {[%emt 0:00:07]} d5 {[%emt 0:00:42]} 5. cxd5 {[%emt 0:00:06]} exd5 {[%emt 0:00:05]} 6. Bg5 {[%emt 0:00:06]} h6 {[%emt 0:00:10]} 7. Bxf6 {[%emt 0:00:05]} Qxf6 {[%emt 0:00:05]} 8. a3 {[%emt 0:00:05]} Bxc3+ {[%emt 0:00:51]} 9. Qxc3 {[%emt 0:00:05]} O-O {[%emt 0:00:26]} 10. e3 {[%emt 0:00:13]} Bf5 {[%emt 0:00:39]} 11. Bd3 {[%emt 0:03:12]} Bxd3 {[%emt 0:03:28] Schwarz steht etwas besser.} 12. Qxd3 {[%emt 0:00:05]} Qg5 {[%emt 0:02:20]} 13. Qf1 {[%emt 0:04:20]} Nd7 {[%emt 0:04:44]} 14. Nf3 {[%emt 0:00:15]} Qg6 {[%emt 0:01:16]} 15. Rc1 {[%emt 0:05:27][%cal Og2g3]} Rac8 {[%emt 0:02:48]} 16. b4 {[%emt 0:10:54]} (16. g3 $11 {kam in Betracht.}) 16... b6 {[%emt 0:11:15]} (16... a5 $1 $15 17. bxa5 c5) 17. b5 {[%emt 0:04:37]} (17. g3 $11) 17... c5 $17 {[%emt 0:01:23]} 18. bxc6 {[%emt 0:00:25]} Rxc6 {[%emt 0:00:08]} 19. Rd1 {[%emt 0:04:13] Der Zug kostet die Partie für Weiß.} (19. Rxc6 $17 {kämpft weiter.} Qxc6 20. Qd3) 19... Rfc8 $19 {[%emt 0:02:53] [#] Und ...Rc1 würde nun gewinnen.} 20. g3 $2 {[%emt 0:02:42]} (20. Qe2 {war einen Versuch wert.} Qxg2 21. Rg1) 20... Rc1 {[%emt 0:08:17] Schwarz steht klar auf Gewinn.} 21. Qe2 {[%emt 0:01:17]} R8c2 {[%emt 0:04:45]} 22. Nd2 {[%emt 0:00:12]} Rxd1+ {[%emt 0:00:20]} 23. Qxd1 {[%emt 0:02:17]} Qd3 {[%emt 0:00:13] Gewichteter Fehlerwert: Weiß=0.61/Schwarz=0.09 (makellos) .  Verlustzug:     	Weiß=1     	---        Fehler:       	Weiß=3     	Schwarz=1     Ungenau:       	Weiß=2     	Schwarz=1     OK:         	Weiß=4     	Schwarz=3     Bester:       	---       	Schwarz=6} 0-1